[Event "Early-Titled-Tuesday-Blitz-March-19-2024"]
[Site "Chess.com"]
[Date "2024.03.19"]
[Round "2"]
[White "MikeSailer"]
[Black "venturov"]
[Result "0-1"]
[WhiteElo "2116"]
[BlackElo "2479"]
[TimeControl "180+1"]
[EndTime "8:18:06 PDT"]
[Termination "venturov won by checkmate"]

1. d4 {[%clk 0:03:00.1]} 1... Nf6 {[%clk 0:03:00]} 2. Nf3 {[%clk 0:02:59.3]}
2... g6 {[%clk 0:02:59.5]} 3. Bf4 {[%clk 0:02:56.3]} 3... Bg7 {[%clk 0:02:55.7]}
4. e3 {[%clk 0:02:56.2]} 4... O-O {[%clk 0:02:55.2]} 5. Be2 {[%clk 0:02:56.2]}
5... c5 {[%clk 0:02:52.5]} 6. c3 {[%clk 0:02:55.9]} 6... d6 {[%clk 0:02:47.7]}
7. O-O {[%clk 0:02:55.6]} 7... a6 {[%clk 0:02:39.6]} 8. a4 {[%clk 0:02:54.9]}
8... b6 {[%clk 0:02:35.9]} 9. Nbd2 {[%clk 0:02:54.4]} 9... Bb7 {[%clk
0:02:35.4]} 10. h3 {[%clk 0:02:49]} 10... Nbd7 {[%clk 0:02:34.8]} 11. b4 {[%clk
0:02:48.1]} 11... Rc8 {[%clk 0:02:26.9]} 12. Re1 {[%clk 0:02:28.8]} 12... cxb4
{[%clk 0:02:26.1]} 13. cxb4 {[%clk 0:02:28.4]} 13... a5 {[%clk 0:02:22.8]} 14.
b5 {[%clk 0:02:24.9]} 14... Nd5 {[%clk 0:02:19]} 15. Bg5 {[%clk 0:02:11.7]}
15... Nc3 {[%clk 0:02:10.9]} 16. Qb3 {[%clk 0:02:11.4]} 16... Nxe2+ {[%clk
0:02:06.3]} 17. Rxe2 {[%clk 0:02:11.3]} 17... h6 {[%clk 0:02:04.7]} 18. Bh4
{[%clk 0:02:11.1]} 18... g5 {[%clk 0:02:05]} 19. Bg3 {[%clk 0:02:11.2]} 19...
Nf6 {[%clk 0:02:05.8]} 20. Ree1 {[%clk 0:02:02.7]} 20... Qd7 {[%clk 0:02:02.9]}
21. Rac1 {[%clk 0:02:01.6]} 21... Nd5 {[%clk 0:02:02.3]} 22. Nc4 {[%clk
0:01:42.6]} 22... Qd8 {[%clk 0:01:42.3]} 23. e4 {[%clk 0:01:21.5]} 23... Nb4
{[%clk 0:01:42.3]} 24. d5 {[%clk 0:01:16.6]} 24... Rc5 {[%clk 0:01:34.4]} 25.
Red1 {[%clk 0:01:15.6]} 25... Qc7 {[%clk 0:01:27.4]} 26. Nfd2 {[%clk 0:01:10.6]}
26... Rc8 {[%clk 0:01:25.4]} 27. Kh2 {[%clk 0:00:55.4]} 27... Nxd5 {[%clk
0:01:14.6]} 28. exd5 {[%clk 0:00:51.2]} 28... Bxd5 {[%clk 0:01:15.5]} 29. Qe3
{[%clk 0:00:43.2]} 29... Bxc4 {[%clk 0:01:12.3]} 30. Nxc4 {[%clk 0:00:43.4]}
30... Rxc4 {[%clk 0:01:04.7]} 31. Rxc4 {[%clk 0:00:43.5]} 31... Qxc4 {[%clk
0:01:05.6]} 32. Qxe7 {[%clk 0:00:43.3]} 32... Qxa4 {[%clk 0:01:06]} 33. Rxd6
{[%clk 0:00:31.7]} 33... Qxb5 {[%clk 0:01:03.3]} 34. Rd7 {[%clk 0:00:23.8]}
34... Qf5 {[%clk 0:00:56]} 35. Rb7 {[%clk 0:00:17.3]} 35... b5 {[%clk
0:00:44.7]} 36. Ra7 {[%clk 0:00:10.3]} 36... a4 {[%clk 0:00:44.1]} 37. Qb7
{[%clk 0:00:09.8]} 37... h5 {[%clk 0:00:32.3]} 38. f3 {[%clk 0:00:08]} 38... h4
{[%clk 0:00:30.6]} 39. Bd6 {[%clk 0:00:07.3]} 39... Be5+ {[%clk 0:00:30.1]} 40.
Bxe5 {[%clk 0:00:06.8]} 40... Qxe5+ {[%clk 0:00:31]} 41. Kg1 {[%clk 0:00:06.4]}
41... Qe1+ {[%clk 0:00:29.4]} 42. Kh2 {[%clk 0:00:05.3]} 42... Qg3+ {[%clk
0:00:30.1]} 43. Kg1 {[%clk 0:00:05.5]} 43... Rc1# {[%clk 0:00:31]} 0-1

[Event "Early-Titled-Tuesday-Blitz-March-19-2024"]
[Site "Chess.com"]
[Date "2024.03.19"]
[Round "2"]
[White "Nitzan_Steinberg"]
[Black "KChor05"]
[Result "1-0"]
[WhiteElo "2872"]
[BlackElo "2610"]
[TimeControl "180+1"]
[EndTime "8:18:08 PDT"]
[Termination "Nitzan_Steinberg won by resignation"]

1. d4 {[%clk 0:03:00.9]} 1... Nf6 {[%clk 0:02:57.5]} 2. c4 {[%clk 0:03:01]} 2...
g6 {[%clk 0:02:57.3]} 3. Nc3 {[%clk 0:03:00.7]} 3... Bg7 {[%clk 0:02:58]} 4. g3
{[%clk 0:03:00.6]} 4... O-O {[%clk 0:02:58.9]} 5. Bg2 {[%clk 0:03:00.8]} 5...
Re8 {[%clk 0:02:59.8]} 6. Nf3 {[%clk 0:02:55.8]} 6... d6 {[%clk 0:03:00.2]} 7.
O-O {[%clk 0:02:55.8]} 7... Na6 {[%clk 0:02:57.6]} 8. e3 {[%clk 0:02:49.1]} 8...
c5 {[%clk 0:02:57.8]} 9. b3 {[%clk 0:02:47.5]} 9... Bf5 {[%clk 0:02:57.1]} 10.
Nh4 {[%clk 0:02:45.1]} 10... Bc8 {[%clk 0:02:57]} 11. Bb2 {[%clk 0:02:44.9]}
11... Rb8 {[%clk 0:02:55.7]} 12. Qd2 {[%clk 0:02:41.4]} 12... Bd7 {[%clk
0:02:44]} 13. Rad1 {[%clk 0:02:38.2]} 13... Bg4 {[%clk 0:02:37.2]} 14. Nf3
{[%clk 0:02:33.8]} 14... Qc8 {[%clk 0:02:34.2]} 15. Rfe1 {[%clk 0:02:29.4]}
15... Qf5 {[%clk 0:02:26.6]} 16. Nh4 {[%clk 0:02:23]} 16... Qh5 {[%clk
0:02:26.1]} 17. f3 {[%clk 0:02:15.1]} 17... Bd7 {[%clk 0:02:26]} 18. e4 {[%clk
0:02:12]} 18... cxd4 {[%clk 0:02:15.9]} 19. Qxd4 {[%clk 0:02:05.9]} 19... Nb4
{[%clk 0:01:59.7]} 20. Qf2 {[%clk 0:01:42.7]} 20... Qa5 {[%clk 0:01:45.6]} 21.
a3 {[%clk 0:01:30.2]} 21... Nc6 {[%clk 0:01:45.2]} 22. b4 {[%clk 0:01:30]} 22...
Qh5 {[%clk 0:01:40.8]} 23. Nd5 {[%clk 0:01:26.4]} 23... Nxd5 {[%clk 0:01:22.6]}
24. Bxg7 {[%clk 0:01:17.7]} 24... Nf4 {[%clk 0:00:54.2]} 25. gxf4 {[%clk
0:00:54.6]} 25... Kxg7 {[%clk 0:00:48.9]} 26. Rd5 {[%clk 0:00:54.5]} 26... Qh6
{[%clk 0:00:44.9]} 27. Qg3 {[%clk 0:00:54.3]} 27... Kh8 {[%clk 0:00:41.1]} 28.
Red1 {[%clk 0:00:45.6]} 28... Be6 {[%clk 0:00:40.2]} 29. Rg5 {[%clk 0:00:41.4]}
29... Bxc4 {[%clk 0:00:39]} 30. f5 {[%clk 0:00:36.3]} 30... f6 {[%clk
0:00:28.5]} 31. Nxg6+ {[%clk 0:00:35.5]} 31... hxg6 {[%clk 0:00:28.2]} 32. Rxg6
{[%clk 0:00:35.5]} 32... Qh7 {[%clk 0:00:28.4]} 33. Qf4 {[%clk 0:00:25.6]} 33...
Rg8 {[%clk 0:00:20.6]} 34. Rh6 {[%clk 0:00:25.7]} 34... Ne5 {[%clk 0:00:20.9]}
35. Rxh7+ {[%clk 0:00:19.8]} 35... Kxh7 {[%clk 0:00:21.8]} 36. Qh4+ {[%clk
0:00:16.8]} 36... Kg7 {[%clk 0:00:22.1]} 37. f4 {[%clk 0:00:12.7]} 37... Nd3
{[%clk 0:00:20.1]} 38. Rxd3 {[%clk 0:00:11.1]} 38... Bxd3 {[%clk 0:00:20.3]} 39.
Qg3+ {[%clk 0:00:11.8]} 1-0

[Event "Early-Titled-Tuesday-Blitz-March-19-2024"]
[Site "Chess.com"]
[Date "2024.03.19"]
[Round "2"]
[White "vugarrasulov"]
[Black "GMAneta"]
[Result "1-0"]
[WhiteElo "2981"]
[BlackElo "2663"]
[TimeControl "180+1"]
[EndTime "8:18:09 PDT"]
[Termination "vugarrasulov won on time"]

1. d4 {[%clk 0:03:00.9]} 1... d5 {[%clk 0:02:59.5]} 2. c4 {[%clk 0:03:00.9]}
2... c6 {[%clk 0:02:59.5]} 3. Nc3 {[%clk 0:03:00.4]} 3... Nf6 {[%clk 0:02:59.2]}
4. e3 {[%clk 0:03:00.7]} 4... e6 {[%clk 0:02:58.8]} 5. Nf3 {[%clk 0:03:00.2]}
5... Nbd7 {[%clk 0:02:58.5]} 6. Bd3 {[%clk 0:03:00.8]} 6... Be7 {[%clk
0:02:58.3]} 7. O-O {[%clk 0:03:00.4]} 7... O-O {[%clk 0:02:58]} 8. e4 {[%clk
0:03:00.1]} 8... dxe4 {[%clk 0:02:57.5]} 9. Nxe4 {[%clk 0:03:01]} 9... b6 {[%clk
0:02:57.9]} 10. Bf4 {[%clk 0:02:58.8]} 10... c5 {[%clk 0:02:56.4]} 11. dxc5
{[%clk 0:02:47.6]} 11... Nxc5 {[%clk 0:02:52.1]} 12. Nxc5 {[%clk 0:02:47.6]}
12... Bxc5 {[%clk 0:02:50.8]} 13. Qe2 {[%clk 0:02:48]} 13... Bb7 {[%clk
0:02:50.7]} 14. Rad1 {[%clk 0:02:48.6]} 14... Qe7 {[%clk 0:02:47.6]} 15. a3
{[%clk 0:02:44.6]} 15... a5 {[%clk 0:02:46.6]} 16. Bg5 {[%clk 0:02:39.4]} 16...
h6 {[%clk 0:02:45.2]} 17. Bh4 {[%clk 0:02:37]} 17... Rfd8 {[%clk 0:02:45.1]} 18.
Ne5 {[%clk 0:02:34.8]} 18... Rd4 {[%clk 0:02:37.4]} 19. Bxf6 {[%clk 0:02:20.8]}
19... gxf6 {[%clk 0:01:54]} 20. Nf3 {[%clk 0:02:17.5]} 20... Rg4 {[%clk
0:01:48.7]} 21. h3 {[%clk 0:02:12.5]} 21... Rg7 {[%clk 0:01:39.3]} 22. Be4
{[%clk 0:02:12.2]} 22... Rc8 {[%clk 0:01:31.1]} 23. Rd3 {[%clk 0:02:01.7]} 23...
Ba6 {[%clk 0:01:18.6]} 24. Rc3 {[%clk 0:01:42.7]} 24... f5 {[%clk 0:01:15]} 25.
Bb1 {[%clk 0:01:41.4]} 25... Bb7 {[%clk 0:01:10.4]} 26. Rd1 {[%clk 0:01:41.5]}
26... Rd8 {[%clk 0:01:03.5]} 27. Rcd3 {[%clk 0:01:37.6]} 27... Rxd3 {[%clk
0:00:59.2]} 28. Qxd3 {[%clk 0:01:38.5]} 28... Kh7 {[%clk 0:00:50.6]} 29. Qc3
{[%clk 0:01:24.3]} 29... Qc7 {[%clk 0:00:34.3]} 30. Kf1 {[%clk 0:01:09.4]} 30...
Qf4 {[%clk 0:00:28.2]} 31. b4 {[%clk 0:00:59.6]} 31... axb4 {[%clk 0:00:23]} 32.
axb4 {[%clk 0:01:00.5]} 32... Bxb4 {[%clk 0:00:15.5]} 33. Qd3 {[%clk 0:01:00.6]}
33... Bc5 {[%clk 0:00:14.8]} 34. Re1 {[%clk 0:00:52.7]} 34... Be4 {[%clk
0:00:14]} 35. Qb3 {[%clk 0:00:48.3]} 35... Bxf3 {[%clk 0:00:11.9]} 36. Qxf3
{[%clk 0:00:48.2]} 36... Qxc4+ {[%clk 0:00:10.3]} 37. Bd3 {[%clk 0:00:46.8]}
37... Qd4 {[%clk 0:00:06.5]} 38. Rd1 {[%clk 0:00:46.3]} 38... Qe5 {[%clk
0:00:05.9]} 39. g4 {[%clk 0:00:46.5]} 39... Qh2 {[%clk 0:00:04.1]} 40. Ke2
{[%clk 0:00:40.5]} 40... Rg5 {[%clk 0:00:03.4]} 41. gxf5 {[%clk 0:00:31.6]}
41... Qe5+ {[%clk 0:00:03.6]} 42. Kf1 {[%clk 0:00:31.9]} 42... exf5 {[%clk
0:00:03.9]} 43. Re1 {[%clk 0:00:32]} 1-0

[Event "Early-Titled-Tuesday-Blitz-March-19-2024"]
[Site "Chess.com"]
[Date "2024.03.19"]
[Round "2"]
[White "Schattman"]
[Black "javirec"]
[Result "1-0"]
[WhiteElo "2514"]
[BlackElo "2235"]
[TimeControl "180+1"]
[EndTime "8:18:09 PDT"]
[Termination "Schattman won by checkmate"]

1. b3 {[%clk 0:02:58.4]} 1... e5 {[%clk 0:02:47.8]} 2. c4 {[%clk 0:02:57]} 2...
Nf6 {[%clk 0:02:46.7]} 3. Bb2 {[%clk 0:02:57.1]} 3... Nc6 {[%clk 0:02:39]} 4. e3
{[%clk 0:02:57.5]} 4... d5 {[%clk 0:02:24]} 5. cxd5 {[%clk 0:02:57.4]} 5... Nxd5
{[%clk 0:02:23.7]} 6. a3 {[%clk 0:02:57.7]} 6... Bd6 {[%clk 0:02:19.4]} 7. Qc2
{[%clk 0:02:56.6]} 7... O-O {[%clk 0:02:18.8]} 8. Nf3 {[%clk 0:02:56.2]} 8... h6
{[%clk 0:02:16.8]} 9. Bb5 {[%clk 0:02:51.1]} 9... e4 {[%clk 0:02:04.5]} 10. Qxe4
{[%clk 0:02:40.1]} 10... Be6 {[%clk 0:02:02.2]} 11. Qc2 {[%clk 0:02:29]} 11...
Nce7 {[%clk 0:01:55.3]} 12. Nc3 {[%clk 0:02:23.3]} 12... c6 {[%clk 0:01:44.1]}
13. Be2 {[%clk 0:02:22.4]} 13... Ng6 {[%clk 0:01:39.5]} 14. g3 {[%clk
0:02:14.8]} 14... a5 {[%clk 0:01:37.9]} 15. O-O {[%clk 0:02:06.9]} 15... Re8
{[%clk 0:01:36.2]} 16. e4 {[%clk 0:01:58.6]} 16... Nb6 {[%clk 0:01:34]} 17. d4
{[%clk 0:01:50.5]} 17... Be7 {[%clk 0:01:33.5]} 18. Rfd1 {[%clk 0:01:37]} 18...
a4 {[%clk 0:01:32.5]} 19. Nxa4 {[%clk 0:01:34.8]} 19... Nxa4 {[%clk 0:01:32.3]}
20. bxa4 {[%clk 0:01:35.7]} 20... Qa5 {[%clk 0:01:31.5]} 21. Bc4 {[%clk
0:01:17.2]} 21... Bxc4 {[%clk 0:01:23]} 22. Qxc4 {[%clk 0:01:17.2]} 22... Qxa4
{[%clk 0:01:23.5]} 23. Qxa4 {[%clk 0:01:15.5]} 23... Rxa4 {[%clk 0:01:24.4]} 24.
d5 {[%clk 0:01:16]} 24... cxd5 {[%clk 0:01:22.7]} 25. exd5 {[%clk 0:01:15.8]}
25... Bd6 {[%clk 0:01:14.8]} 26. Rab1 {[%clk 0:01:08.4]} 26... Rea8 {[%clk
0:01:06.8]} 27. h4 {[%clk 0:01:04.9]} 27... Nf8 {[%clk 0:01:03.1]} 28. Bc1
{[%clk 0:01:03.5]} 28... Bxa3 {[%clk 0:00:57.5]} 29. Rxb7 {[%clk 0:01:00.3]}
29... Bc5 {[%clk 0:00:56.3]} 30. Rb5 {[%clk 0:00:48.1]} 30... Nd7 {[%clk
0:00:53.6]} 31. Ne5 {[%clk 0:00:38.9]} 31... Nxe5 {[%clk 0:00:39.7]} 32. Rxc5
{[%clk 0:00:37.2]} 32... Ra2 {[%clk 0:00:28]} 33. d6 {[%clk 0:00:26.9]} 33...
Kf8 {[%clk 0:00:27.7]} 34. Bf4 {[%clk 0:00:23]} 34... Nd7 {[%clk 0:00:27.3]} 35.
Rc7 {[%clk 0:00:20.6]} 35... Ke8 {[%clk 0:00:27.1]} 36. Re1+ {[%clk 0:00:20.2]}
36... Kd8 {[%clk 0:00:21.3]} 37. Re7 {[%clk 0:00:19.2]} 37... Nf6 {[%clk
0:00:17.7]} 38. Rxf7 {[%clk 0:00:17.5]} 38... Re2 {[%clk 0:00:12.6]} 39. Rxg7
{[%clk 0:00:14.6]} 39... Ne8 {[%clk 0:00:11.8]} 40. Rgd7# {[%clk 0:00:11.7]} 1-0

[Event "Early-Titled-Tuesday-Blitz-March-19-2024"]
[Site "Chess.com"]
[Date "2024.03.19"]
[Round "2"]
[White "Zq1"]
[Black "vladislavkovalev"]
[Result "0-1"]
[WhiteElo "2609"]
[BlackElo "2867"]
[TimeControl "180+1"]
[EndTime "8:18:10 PDT"]
[Termination "vladislavkovalev won by resignation"]

1. d4 {[%clk 0:03:00.9]} 1... Nf6 {[%clk 0:03:00.2]} 2. c4 {[%clk 0:03:00.8]}
2... e6 {[%clk 0:03:00.8]} 3. Nf3 {[%clk 0:03:00.1]} 3... b6 {[%clk 0:03:00.2]}
4. g3 {[%clk 0:02:59.7]} 4... Ba6 {[%clk 0:02:57.9]} 5. b3 {[%clk 0:02:59.7]}
5... Bb4+ {[%clk 0:02:57.7]} 6. Bd2 {[%clk 0:02:59]} 6... Be7 {[%clk 0:02:58.1]}
7. Bg2 {[%clk 0:02:57.3]} 7... d5 {[%clk 0:02:58.8]} 8. Qc2 {[%clk 0:02:51.5]}
8... O-O {[%clk 0:02:56.1]} 9. a4 {[%clk 0:02:51.1]} 9... Bb7 {[%clk 0:02:35.5]}
10. a5 {[%clk 0:02:49.5]} 10... c5 {[%clk 0:02:29.3]} 11. dxc5 {[%clk
0:02:47.3]} 11... bxc5 {[%clk 0:02:28]} 12. cxd5 {[%clk 0:02:42.6]} 12... exd5
{[%clk 0:02:22.7]} 13. O-O {[%clk 0:02:39.3]} 13... Na6 {[%clk 0:02:23]} 14. Rd1
{[%clk 0:02:36.5]} 14... h6 {[%clk 0:02:17.8]} 15. e3 {[%clk 0:02:33.9]} 15...
Rc8 {[%clk 0:02:10.8]} 16. Bc3 {[%clk 0:02:32.7]} 16... Qc7 {[%clk 0:01:53.3]}
17. Qb2 {[%clk 0:02:26.4]} 17... Rfd8 {[%clk 0:01:48.7]} 18. Be5 {[%clk
0:02:12.5]} 18... Qc6 {[%clk 0:01:43.7]} 19. Bf4 {[%clk 0:02:04.7]} 19... Ne4
{[%clk 0:01:34.2]} 20. Nbd2 {[%clk 0:01:56.1]} 20... Qe6 {[%clk 0:01:17.8]} 21.
Nxe4 {[%clk 0:01:29.1]} 21... dxe4 {[%clk 0:01:18.7]} 22. Nd2 {[%clk 0:00:52.9]}
22... Bf6 {[%clk 0:01:11.8]} 23. Qb1 {[%clk 0:00:45.2]} 23... Bxa1 {[%clk
0:01:05.2]} 24. Qxa1 {[%clk 0:00:42.9]} 24... g5 {[%clk 0:01:05.1]} 25. Be5
{[%clk 0:00:42.1]} 25... Nb4 {[%clk 0:01:01.3]} 26. Bh8 {[%clk 0:00:35.3]} 26...
Qg6 {[%clk 0:00:48.8]} 27. Bc3 {[%clk 0:00:31.5]} 27... Rd6 {[%clk 0:00:13.6]}
28. Nc4 {[%clk 0:00:31.1]} 28... Rxd1+ {[%clk 0:00:13.3]} 29. Qxd1 {[%clk
0:00:30.9]} 29... Nd3 {[%clk 0:00:14.1]} 30. Ne5 {[%clk 0:00:21.4]} 30... Qe6
{[%clk 0:00:12]} 31. Nxd3 {[%clk 0:00:15.5]} 31... Rd8 {[%clk 0:00:09.4]} 32.
Qa1 {[%clk 0:00:10.4]} 32... Rxd3 {[%clk 0:00:08.6]} 33. Bh8 {[%clk 0:00:10.1]}
33... f6 {[%clk 0:00:06]} 34. Bxf6 {[%clk 0:00:09.8]} 34... Qd5 {[%clk
0:00:05.5]} 35. Bf1 {[%clk 0:00:09.1]} 35... Rd1 {[%clk 0:00:05.5]} 36. Qc3
{[%clk 0:00:05.1]} 36... Ba6 {[%clk 0:00:05.6]} 0-1

[Event "Early-Titled-Tuesday-Blitz-March-19-2024"]
[Site "Chess.com"]
[Date "2024.03.19"]
[Round "2"]
[White "yosephtaher"]
[Black "IMRosen"]
[Result "1-0"]
[WhiteElo "2972"]
[BlackElo "2658"]
[TimeControl "180+1"]
[EndTime "8:18:13 PDT"]
[Termination "yosephtaher won by checkmate"]

1. c4 {[%clk 0:03:00.2]} 1... e6 {[%clk 0:02:57.7]} 2. Nf3 {[%clk 0:02:58]} 2...
d5 {[%clk 0:02:58.1]} 3. d4 {[%clk 0:02:58.3]} 3... Nf6 {[%clk 0:02:58.5]} 4. g3
{[%clk 0:02:59]} 4... dxc4 {[%clk 0:02:58.6]} 5. Bg2 {[%clk 0:02:59.3]} 5...
Bb4+ {[%clk 0:02:59.3]} 6. Bd2 {[%clk 0:02:56.3]} 6... c5 {[%clk 0:02:59.7]} 7.
dxc5 {[%clk 0:02:42.2]} 7... Bxc5 {[%clk 0:02:59.9]} 8. Qa4+ {[%clk 0:02:41.8]}
8... Nbd7 {[%clk 0:03:00.3]} 9. Qxc4 {[%clk 0:02:41.9]} 9... b5 {[%clk
0:03:01.1]} 10. Qxb5 {[%clk 0:02:27.4]} 10... Rb8 {[%clk 0:03:01.3]} 11. Qa4
{[%clk 0:02:27.4]} 11... Rxb2 {[%clk 0:03:00.8]} 12. Bc3 {[%clk 0:02:21.5]}
12... Qb6 {[%clk 0:02:35.9]} 13. O-O {[%clk 0:02:01.8]} 13... Bxf2+ {[%clk
0:02:33.9]} 14. Rxf2 {[%clk 0:01:31.9]} 14... Rxb1+ {[%clk 0:02:33.9]} 15. Rxb1
{[%clk 0:01:32]} 15... Qxb1+ {[%clk 0:02:34.5]} 16. Rf1 {[%clk 0:01:32.7]} 16...
Qb8 {[%clk 0:01:56.4]} 17. Qa3 {[%clk 0:01:30]} 17... Bb7 {[%clk 0:01:21.8]} 18.
Rb1 {[%clk 0:01:16]} 18... Qc7 {[%clk 0:01:06.2]} 19. Bd4 {[%clk 0:01:08.6]}
19... a6 {[%clk 0:01:04.2]} 20. Rc1 {[%clk 0:00:59.9]} 20... Qd8 {[%clk
0:00:58.7]} 21. Qb4 {[%clk 0:00:56.3]} 21... Bd5 {[%clk 0:00:51.8]} 22. Bb2
{[%clk 0:00:54]} 22... Qb6+ {[%clk 0:00:42.3]} 23. Qxb6 {[%clk 0:00:45.8]} 23...
Nxb6 {[%clk 0:00:43.2]} 24. Bd4 {[%clk 0:00:46.5]} 24... Nc4 {[%clk 0:00:35.4]}
25. Bxf6 {[%clk 0:00:43.2]} 25... gxf6 {[%clk 0:00:34.7]} 26. e4 {[%clk
0:00:43.9]} 26... Ke7 {[%clk 0:00:07.6]} 27. exd5 {[%clk 0:00:43.9]} 27... exd5
{[%clk 0:00:08.5]} 28. Nd4 {[%clk 0:00:42.6]} 28... Kd6 {[%clk 0:00:09.1]} 29.
Nc2 {[%clk 0:00:41.3]} 29... Rb8 {[%clk 0:00:05.3]} 30. Rd1 {[%clk 0:00:40.6]}
30... Rb5 {[%clk 0:00:05.4]} 31. a4 {[%clk 0:00:32.7]} 31... Rc5 {[%clk
0:00:05]} 32. Nb4 {[%clk 0:00:33.3]} 32... Nb6 {[%clk 0:00:02.8]} 33. Nxa6
{[%clk 0:00:30.4]} 33... Rc4 {[%clk 0:00:02.2]} 34. a5 {[%clk 0:00:29.4]} 34...
Na4 {[%clk 0:00:01.5]} 35. Bxd5 {[%clk 0:00:28.3]} 35... Nc3 {[%clk 0:00:01.6]}
36. Bxc4+ {[%clk 0:00:28.2]} 36... Nxd1 {[%clk 0:00:02.1]} 37. Bxf7 {[%clk
0:00:27.3]} 37... Nb2 {[%clk 0:00:01.7]} 38. Nb4 {[%clk 0:00:27.3]} 38... Kc5
{[%clk 0:00:01.7]} 39. a6 {[%clk 0:00:27.9]} 39... Kxb4 {[%clk 0:00:02]} 40. a7
{[%clk 0:00:28]} 40... f5 {[%clk 0:00:02.4]} 41. a8=Q {[%clk 0:00:28.2]} 41...
Kc3 {[%clk 0:00:02.6]} 42. Qc6+ {[%clk 0:00:28.2]} 42... Kd2 {[%clk 0:00:02.3]}
43. Qg2+ {[%clk 0:00:27.8]} 43... Kc1 {[%clk 0:00:02.2]} 44. Bb3 {[%clk
0:00:27.3]} 44... Kb1 {[%clk 0:00:01.5]} 45. Qc2+ {[%clk 0:00:28.1]} 45... Ka1
{[%clk 0:00:02.1]} 46. Qc1# {[%clk 0:00:29]} 1-0

[Event "Early-Titled-Tuesday-Blitz-March-19-2024"]
[Site "Chess.com"]
[Date "2024.03.19"]
[Round "2"]
[White "tetrix83"]
[Black "Zhigalko_Sergei"]
[Result "0-1"]
[WhiteElo "2603"]
[BlackElo "2856"]
[TimeControl "180+1"]
[EndTime "8:18:13 PDT"]
[Termination "Zhigalko_Sergei won by resignation"]

1. Nf3 {[%clk 0:03:00.9]} 1... d5 {[%clk 0:03:00]} 2. g3 {[%clk 0:03:00.5]} 2...
c6 {[%clk 0:03:00.4]} 3. Bg2 {[%clk 0:02:59.6]} 3... Bg4 {[%clk 0:03:00.9]} 4.
h3 {[%clk 0:02:58.4]} 4... Bh5 {[%clk 0:03:00.9]} 5. c4 {[%clk 0:02:57.1]} 5...
e6 {[%clk 0:03:01.2]} 6. cxd5 {[%clk 0:02:54.4]} 6... cxd5 {[%clk 0:02:57.8]} 7.
Qb3 {[%clk 0:02:46.3]} 7... Qc7 {[%clk 0:02:34.5]} 8. Nc3 {[%clk 0:02:40.5]}
8... Nc6 {[%clk 0:02:33.5]} 9. d3 {[%clk 0:02:28.2]} 9... Nf6 {[%clk 0:02:23.3]}
10. Bf4 {[%clk 0:02:27.2]} 10... Qd7 {[%clk 0:02:23.4]} 11. g4 {[%clk
0:02:14.4]} 11... Bg6 {[%clk 0:02:22.4]} 12. O-O {[%clk 0:02:09.8]} 12... Be7
{[%clk 0:02:17.4]} 13. e4 {[%clk 0:01:59.6]} 13... O-O {[%clk 0:02:12.7]} 14.
Ne5 {[%clk 0:01:24.7]} 14... Nxe5 {[%clk 0:02:11.6]} 15. Bxe5 {[%clk 0:01:25.6]}
15... Rfd8 {[%clk 0:01:35.6]} 16. Rfd1 {[%clk 0:00:57.7]} 16... Rac8 {[%clk
0:01:07.6]} 17. Bd4 {[%clk 0:00:39.3]} 17... b6 {[%clk 0:01:02.8]} 18. f4 {[%clk
0:00:35.8]} 18... dxe4 {[%clk 0:00:34.7]} 19. dxe4 {[%clk 0:00:35.5]} 19... Qc7
{[%clk 0:00:35.3]} 20. Be5 {[%clk 0:00:28]} 20... Qc5+ {[%clk 0:00:34.2]} 21.
Kh2 {[%clk 0:00:27.9]} 21... h6 {[%clk 0:00:16.4]} 22. Rxd8+ {[%clk 0:00:25.7]}
22... Rxd8 {[%clk 0:00:16.3]} 23. Rd1 {[%clk 0:00:26.4]} 23... Qe3 {[%clk
0:00:09]} 24. Rxd8+ {[%clk 0:00:24.7]} 24... Bxd8 {[%clk 0:00:09.9]} 25. Qd1
{[%clk 0:00:18.5]} 25... Be7 {[%clk 0:00:10.1]} 26. Qf3 {[%clk 0:00:17.7]} 26...
Qd2 {[%clk 0:00:07.7]} 27. f5 {[%clk 0:00:16.4]} 27... Bh7 {[%clk 0:00:08.1]}
28. Bf4 {[%clk 0:00:15.8]} 28... Qxb2 {[%clk 0:00:06]} 29. e5 {[%clk 0:00:16.1]}
29... Nd7 {[%clk 0:00:05.7]} 30. Qa8+ {[%clk 0:00:14.3]} 30... Bf8 {[%clk
0:00:04.9]} 31. fxe6 {[%clk 0:00:14.4]} 31... fxe6 {[%clk 0:00:04.5]} 32. Qc6
{[%clk 0:00:15]} 32... Nc5 {[%clk 0:00:03.9]} 33. Na4 {[%clk 0:00:13.7]} 33...
Qxa2 {[%clk 0:00:03.1]} 34. Nxc5 {[%clk 0:00:13.5]} 34... bxc5 {[%clk
0:00:03.4]} 35. Qc8 {[%clk 0:00:11.6]} 35... Be4 {[%clk 0:00:03]} 0-1